bitfinex/quotes_ETHUSD_20250924
["timestamp","ask_amount","ask_price","bid_price","bid_amount"]
[1758720164453,0.0002,4182.0,4181.9,8.47382826]
[1758720164645,0.0002,4182.0,4181.9,8.91202826]
[1758720177496,0.0002,4182.0,4181.9,11.91202826]
[1758720178227,0.0002,4182.7,4182.6,11.34873384]
[1758720178228,1e-08,4182.7,4182.6,11.34873384]
[1758720178428,1e-08,4182.9,4182.7,2.3908002]
[1758720178738,1e-08,4182.9,4182.8,4.79990743]
[1758720178939,1e-08,4182.9,4182.8,7.85685047]
[1758720179240,1e-08,4182.9,4182.8,7.83294304]
[1758720180916,0.001,4183.7,4182.9,0.792]
[1758720181126,0.001,4183.7,4183.6,11.34816235]
[1758720181353,0.001,4183.7,4183.6,17.32416235]
[1758720181664,0.001,4183.7,4183.6,18.02696235]
[1758720181966,0.001,4184.0,4183.9,11.34799096]
[1758720182268,0.001,4184.0,4183.9,15.33199096]
[1758720182447,0.001,4184.0,4183.9,17.37359293]
[1758720182617,0.001,4184.0,4183.9,18.07639293]
[1758720184523,0.001,4184.0,4183.9,18.54804904]
[1758720187137,0.001,4184.0,4183.9,18.07639293]
[1758720188024,0.001,4184.0,4183.9,18.19559293]
[1758720189389,0.001,4184.0,4183.9,17.40359293]
[1758720189692,0.0002,4184.0,4183.9,9.32691645]
[1758720191156,0.0002,4184.0,4183.9,9.81436782]
[1758720192877,0.0002,4184.0,4183.9,5.83036782]
[1758720193093,0.0002,4184.0,4183.9,22.33536782]
[1758720197984,0.6592,4184.0,4183.9,4.50031448]
[1758720198312,0.6592,4184.0,4183.9,8.48031448]
[1758720198511,0.6592,4184.0,4183.9,9.27231448]
[1758720198813,0.6592,4184.0,4183.9,8.48031448]
[1758720200598,0.6592,4184.0,4183.9,9.27231448]
[1758720201007,0.0002,4184.0,4183.9,10.43856825]
[1758720201812,0.0002,4184.0,4183.9,10.66706825]
[1758720202167,0.0002,4184.0,4183.9,10.43856825]
[1758720205843,0.2294,4184.0,4183.9,4.46756825]
[1758720206140,0.0002,4184.0,4183.9,9.29721562]
[1758720206344,0.0002,4184.0,4183.9,9.27331448]
[1758720210969,0.0002,4184.0,4183.9,13.58331448]
[1758720211355,0.0002,4184.0,4183.9,14.25241448]
[1758720211781,0.0002,4184.0,4183.9,9.71391448]
[1758720211958,0.0002,4184.0,4183.9,11.15302825]
[1758720212135,0.0002,4184.0,4183.9,10.71242825]
[1758720212468,0.0002,4184.0,4183.9,10.48392825]
[1758720212838,0.6592,4184.0,4183.9,10.48392825]
[1758720213961,0.2294,4184.0,4183.9,10.48392825]
[1758720214367,0.0002,4184.0,4183.9,10.48392825]
[1758720216783,0.4302,4184.2,4184.1,3.18200023]
[1758720217079,0.6594,4184.2,4184.1,8.44859308]
[1758720217280,0.2296,4184.2,4184.1,8.44859308]
[1758720217579,0.0004,4184.2,4184.1,8.44859308]
[1758720219963,0.2296,4184.2,4184.1,8.44859308]
[1758720220194,0.6594,4184.2,4184.1,4.46959308]
[1758720220498,0.6594,4184.2,4184.1,10.43859308]
[1758720224292,0.6594,4184.2,4184.1,9.15100023]
[1758720224799,0.6594,4184.2,4184.1,7.16100023]
[1758720224998,0.6594,4184.2,4184.1,9.15200023]
[1758720225698,0.6594,4184.2,4184.1,5.17300023]
[1758720225888,0.6594,4184.2,4184.1,9.15200023]
[1758720227886,0.0004,4184.2,4184.1,9.15200023]
[1758720228092,0.0004,4184.2,4184.1,10.3183317]
[1758720228593,0.719,4184.2,4184.1,9.15200023]
[1758720230700,0.719,4184.2,4184.1,9.15100023]
[1758720231701,1.23161169,4184.2,4183.9,0.1192]
[1758720231906,0.51261169,4184.1,4184.0,3.978]
[1758720232206,2.36197618,4184.1,4184.0,3.978]
[1758720233422,1.64337618,4184.1,4184.0,3.978]
[1758720233641,1.23121169,4184.1,4184.0,6.48725736]
[1758720234026,1.23121169,4184.1,4184.0,4.0972]
[1758720234314,1.23121169,4184.1,4184.0,6.48725736]
[1758720234718,0.7186,4184.1,4184.0,6.48725736]
[1758720236717,0.0004,4184.2,4184.1,2.39000023]
[1758720236917,0.247,4184.2,4184.1,2.41390023]
[1758720237348,0.719,4184.2,4184.1,2.41390023]
[1758720239242,0.0004,4184.2,4184.1,2.41390023]
[1758720240855,0.0004,4184.2,4184.1,3.30120023]
[1758720241078,0.0004,4184.2,4184.1,3.32510023]
[1758720241283,0.0004,4184.2,4184.1,3.30120023]
[1758720241657,0.0004,4184.2,4184.1,3.32510023]
[1758720242063,0.0004,4184.2,4184.1,3.30120023]
[1758720243854,0.0006,4184.4,4184.3,2.389886]
[1758720244098,0.2473,4184.4,4184.3,6.368886]
[1758720244253,0.6898,4184.4,4184.3,6.368886]
[1758720248088,0.6898,4184.4,4184.3,3.979]
[1758720248795,3.0,4184.3,4184.1,0.1212]
[1758720248979,1.15468917,4184.2,4184.1,0.002]
[1758720249158,1.20181169,4184.2,4184.1,3.981]
[1758720249594,6.5917548,4184.2,4184.1,3.981]
[1758720249808,8.57935848,4184.2,4184.1,3.981]
[1758720251690,6.18941537,4184.2,4184.1,3.981]
[1758720252166,4.20181169,4184.2,4184.1,3.981]
[1758720252564,4.84460664,4184.2,4184.1,3.981]
[1758720254093,3.0,4184.2,4184.1,3.981]
[1758720254420,3.0,4184.2,4184.1,6.37100023]
[1758720254711,3.0,4184.2,4184.1,3.981]
[1758720255171,3.2437,4184.2,4184.1,3.981]
[1758720255366,4.21101169,4184.2,4184.1,3.981]
[1758720255589,3.6984,4184.2,4184.1,3.981]
[1758720255795,4.21101169,4184.2,4184.1,3.981]
[1758720257530,3.75631169,4184.2,4184.1,3.981]
[1758720257737,3.0,4184.2,4184.1,3.981]
[1758720257932,3.51261169,4184.2,4184.1,3.981]
[1758720258237,3.75631169,4184.2,4184.1,3.981]
[1758720258438,3.51261169,4184.2,4184.1,3.981]
[1758720258611,3.51261169,4184.2,4184.1,6.37100023]
[1758720259349,3.51261169,4184.2,4184.1,3.981]
[1758720259555,3.51261169,4184.2,4184.1,6.37100023]
[1758720260109,0.51261169,4184.3,4184.2,2.38994311]
[1758720260603,0.51261169,4184.3,4184.2,2.50914311]
[1758720260803,0.51261169,4184.3,4184.2,0.1192]
[1758720261551,0.75631169,4184.3,4184.2,0.1192]
[1758720262453,0.51261169,4184.3,4184.2,2.50914311]
[1758720262901,0.51261169,4184.3,4184.2,0.1192]
[1758720263101,0.51261169,4184.3,4184.2,2.50914311]
[1758720263336,0.51261169,4184.3,4184.2,0.1192]
[1758720263954,0.51261169,4184.3,4184.2,2.50914311]
[1758720264454,0.51261169,4184.3,4184.2,0.1192]
[1758720264681,11.91123137,4184.3,4184.2,0.1192]
[1758720265350,11.91123137,4184.3,4184.2,2.50914311]
[1758720265531,11.91123137,4184.3,4184.2,0.1192]
[1758720266214,12.36593137,4184.3,4184.2,0.1192]
[1758720267753,12.36593137,4184.3,4184.2,2.50914311]
[1758720267957,12.36593137,4184.3,4184.2,0.1192]
[1758720268155,11.91123137,4184.3,4184.2,0.1192]
[1758720269155,12.36593137,4184.3,4184.2,0.1192]
[1758720270613,12.36593137,4184.3,4184.2,0.10465008]
[1758720270831,12.36513137,4184.3,4184.2,0.10465008]
[1758720271254,13.00792632,4184.3,4184.2,0.10465008]
[1758720272485,12.55322632,4184.3,4184.2,0.10465008]
[1758720275860,13.00792632,4184.3,4184.2,0.10465008]
[1758720276446,12.55322632,4184.3,4184.2,0.10465008]
[1758720279223,13.00792632,4184.3,4184.2,0.10465008]
[1758720280015,12.55322632,4184.3,4184.2,2.49459319]
[1758720280213,11.91043137,4184.3,4184.2,2.49459319]
[1758720280411,11.91043137,4184.3,4184.2,0.10465008]
[1758720283330,11.91243137,4184.3,4184.2,0.10465008]
[1758720283500,12.35293137,4184.3,4184.2,0.10465008]
[1758720284226,12.35293137,4184.3,4184.1,0.002]
[1758720284227,2.38994311,4184.2,4184.1,0.002]
[1758720284439,2.9017548,4184.2,4184.1,3.98]
[1758720284637,3.5879548,4184.2,4184.1,0.002]
[1758720284816,3.5879548,4184.2,4184.1,3.98]
[1758720286506,1.19801169,4184.2,4184.1,3.98]
[1758720286711,9.52563408,4184.2,4184.1,3.98]
[1758720288345,8.66673137,4184.2,4184.1,3.98]
[1758720288515,9.52563408,4184.2,4184.1,3.98]
[1758720289417,8.66673137,4184.2,4184.1,3.98]
[1758720289612,9.77133408,4184.2,4184.1,3.98]
[1758720289842,14.54162145,4184.2,4184.1,3.98]
[1758720290347,13.68271874,4184.2,4184.1,3.98]
[1758720291752,14.54139977,4184.2,4184.1,3.98]
[1758720292050,13.68271874,4184.2,4184.1,3.98]
[1758720292354,14.54129593,4184.2,4184.1,3.98]
[1758720292654,13.68271874,4184.2,4184.1,3.98]
[1758720293437,11.29277563,4184.2,4184.1,3.98]
[1758720293726,10.60657563,4184.2,4184.1,3.98]
[1758720294050,10.85227563,4184.2,4184.1,3.98]
[1758720294865,10.60657563,4184.2,4184.1,3.98]
[1758720296234,11.46505342,4184.2,4184.1,3.98]
[1758720296663,13.85499653,4184.2,4184.1,3.98]
[1758720296833,11.46505342,4184.2,4184.1,3.98]
[1758720297346,11.71075342,4184.2,4184.1,3.98]
[1758720297754,11.46505342,4184.2,4184.1,3.98]
[1758720298069,9.52440916,4184.2,4184.1,3.98]
[1758720298644,8.66593137,4184.2,4184.1,3.98]
[1758720299356,8.66593137,4184.2,4184.1,4.0992]
[1758720299560,8.89913137,4184.2,4184.1,4.0992]
[1758720300272,11.19907448,4184.2,4184.1,0.1212]
[1758720300474,13.24593765,4184.2,4184.1,3.98]
[1758720304493,0.42101169,4184.2,4184.1,3.98]
[1758720304776,9.43438159,4184.2,4184.1,3.98]
[1758720305477,1.06482733,4184.2,4184.1,6.39390023]
[1758720305680,0.42101169,4184.2,4184.1,0.1212]
[1758720305865,5.39000023,4184.1,4184.0,3.11209236]
[1758720306065,5.39011448,4183.9,4183.8,0.002]
[1758720306270,14.83196796,4183.9,4183.8,0.002]
[1758720306439,15.53416796,4183.9,4183.8,0.002]
[1758720306843,14.24723416,4183.9,4183.8,0.002]
[1758720307243,16.38102708,4183.9,4183.8,0.002]
[1758720309586,17.66639721,4183.9,4183.8,0.002]
[1758720310351,12.67882708,4183.9,4183.8,0.002]
[1758720310551,5.39011448,4183.9,4183.8,0.002]
[1758720310767,13.77823416,4183.9,4183.8,0.002]
[1758720311183,14.24723416,4183.9,4183.8,0.002]
[1758720312247,14.7612274,4183.9,4183.8,0.002]
[1758720315572,16.04659753,4183.9,4183.8,0.002]
[1758720315768,17.07485706,4183.9,4183.8,0.002]
[1758720316102,18.36004341,4183.9,4183.8,0.002]
[1758720319320,17.07485706,4183.9,4183.8,0.002]
[1758720319526,18.36004341,4183.9,4183.8,0.002]
[1758720323671,17.89104341,4183.9,4183.8,0.002]
[1758720324183,16.37265706,4183.9,4183.8,0.052]
[1758720324642,17.65867858,4183.9,4183.8,0.052]
[1758720324847,18.34617858,4183.9,4183.8,0.052]
[1758720325267,18.34537858,4183.9,4183.8,0.052]
[1758720326262,19.63056493,4183.9,4183.8,0.052]
[1758720326642,3.51399324,4183.9,4183.8,0.052]
[1758720326869,3.51399324,4183.9,4183.8,0.2777]
[1758720327471,3.51399324,4183.9,4183.8,0.052]
[1758720328379,5.90410772,4183.9,4183.8,0.052]
[1758720328579,5.90410772,4183.9,4183.8,14.552]
[1758720328974,3.51399324,4183.9,4183.8,0.052]
[1758720329637,5.90410772,4183.9,4183.8,0.052]
[1758720330283,3.51399324,4183.9,4183.8,0.052]
[1758720330877,3.51399324,4183.9,4183.8,0.7198]
[1758720331317,3.47936799,4183.9,4183.8,0.7198]
[1758720331943,3.47936799,4183.9,4183.8,0.2777]
[1758720332193,3.47936799,4183.9,4183.8,0.7198]
[1758720332892,3.47973518,4183.9,4183.8,17.60997161]
[1758720333182,3.47973518,4183.9,4183.8,17.72917161]
[1758720334985,3.47973518,4183.9,4183.8,21.70917161]
[1758720336208,2.96537475,4183.9,4183.8,24.89245776]
[1758720336615,0.001,4184.0,4183.9,3.18211448]
[1758720336906,0.51536043,4184.0,4183.9,1.4598]
[1758720337111,0.001,4184.0,4183.9,1.4598]
[1758720337627,0.51536043,4184.0,4183.9,4.9977]
[1758720337975,0.51536043,4184.0,4183.9,4.772]
[1758720338176,0.001,4184.0,4183.9,3.98]
[1758720338403,0.51536043,4184.0,4183.9,3.98]
[1758720338610,0.001,4184.0,4183.9,3.98]
[1758720338907,0.51536043,4184.0,4183.9,3.98]
[1758720339113,0.001,4184.0,4183.9,3.98]
[1758720339279,0.51536043,4184.0,4183.9,3.98]
[1758720339479,0.001,4184.0,4183.9,18.48]
[1758720339680,0.51536043,4184.0,4183.9,18.7057]
[1758720339904,0.001,4184.0,4183.9,18.7057]
[1758720340084,0.51536043,4184.0,4183.9,21.53791448]
[1758720340283,0.001,4184.0,4183.9,24.72120063]
[1758720345078,0.001,4184.0,4183.9,22.33108615]
[1758720345286,0.001,4184.0,4183.9,19.272]
[1758720345715,0.001,4184.0,4183.9,21.66211448]
[1758720346816,0.001,4184.0,4183.9,19.26930662]
[1758720347323,0.234,4184.0,4183.9,18.478]
[1758720350626,0.001,4184.0,4183.9,18.478]
[1758720352327,0.0002,4184.0,4183.9,18.478]
[1758720352833,0.2332,4184.0,4183.9,14.5]
[1758720353034,0.6891,4184.0,4183.9,18.478]
[1758720353335,0.6891,4184.0,4183.9,3.978]
[1758720353713,0.6891,4184.0,4183.9,18.478]
[1758720356218,1.20346043,4184.0,4183.9,18.478]
[1758720357638,0.6115349,4184.0,4183.9,18.478]
[1758720359362,0.51436043,4184.0,4183.9,18.478]
[1758720359644,0.74366043,4184.0,4183.9,18.478]
[1758720360632,1.18786043,4184.0,4183.9,18.478]
[1758720361341,0.74366043,4184.0,4183.9,18.478]
[1758720361855,0.51436043,4184.0,4183.9,18.478]
[1758720362233,0.51436043,4184.0,4183.9,19.1571]
[1758720362586,0.51436043,4184.0,4183.8,0.052]
[1758720362587,5.04508513,4184.0,4183.8,0.052]
[1758720362871,6.57797491,4183.9,4183.8,0.052]
[1758720363172,2.39022874,4183.7,4183.6,0.002]
[1758720363333,2.90458917,4183.7,4183.6,3.98]
[1758720363528,5.90458917,4183.7,4183.6,0.002]
[1758720363733,8.56720145,4183.7,4183.6,0.002]
[1758720364332,5.39040015,4183.4,4183.3,0.002]
[1758720364534,5.72509917,4183.3,4183.0,0.002]
[1758720364762,3.0,4182.9,4181.8,0.002]
[1758720364973,16.11554766,4182.4,4181.8,0.002]
[1758720365191,17.57955579,4182.4,4181.8,3.98]
[1758720365366,19.53415617,4182.4,4181.8,3.98]
[1758720366392,18.25305579,4182.4,4181.8,3.98]
[1758720367494,19.10524824,4182.4,4181.8,3.98]
[1758720368171,9.66430704,4182.4,4181.8,3.98]
[1758720368371,3.51436043,4182.4,4181.8,3.98]
[1758720368572,5.39097169,4182.4,4181.8,3.98]
[1758720368784,5.62027169,4182.4,4181.8,3.98]
[1758720369101,5.90533212,4182.4,4181.9,14.502]
[1758720369260,3.51436043,4182.4,4182.1,0.6991]
[1758720369464,3.51436043,4182.4,4182.3,0.6811]
[1758720369465,3.0,4182.4,4182.3,0.6811]
[1758720370100,3.0,4182.4,4182.3,0.2276]
[1758720370901,3.0,4182.4,4182.3,0.002]
[1758720371404,3.0,4182.4,4182.3,0.2276]
[1758720371700,3.0,4182.4,4182.3,0.6811]
[1758720372893,3.0,4182.4,4182.3,0.2276]
[1758720373090,5.39097169,4182.4,4182.3,0.002]
[1758720373392,5.62037169,4182.4,4182.3,0.002]
[1758720373593,6.93745162,4182.4,4182.3,0.002]
[1758720373816,7.56712359,4182.4,4182.3,0.002]
[1758720376472,7.44792359,4182.4,4182.3,0.002]
[1758720376634,7.83056186,4182.4,4182.3,0.002]
[1758720376808,6.76902359,4182.4,4182.3,0.002]
[1758720377004,6.99842359,4182.4,4182.3,0.002]
[1758720377413,7.44792359,4182.4,4182.3,0.002]
[1758720379428,6.76902359,4182.4,4182.3,0.002]
[1758720379810,6.76822359,4182.4,4182.3,0.002]
[1758720381537,5.90064366,4182.4,4182.3,0.2314]
[1758720381738,5.90064366,4182.4,4182.3,0.6717]
[1758720382264,5.90064366,4182.4,4182.3,0.2314]
[1758720383567,3.50967197,4182.4,4182.3,0.6717]
[1758720383729,2.9992,4182.4,4182.3,0.6717]
[1758720384426,5.90103938,4182.4,4182.3,0.6717]
[1758720384862,5.90103938,4182.4,4182.3,0.002]
[1758720385360,6.57993938,4182.4,4182.3,0.002]
[1758720385856,7.81567013,4182.4,4182.3,0.002]
[1758720386160,8.49457013,4182.4,4182.3,0.002]
[1758720386659,16.77835347,4182.4,4182.3,0.002]
[1758720387063,16.09945347,4182.4,4182.3,0.002]
[1758720387370,16.77835347,4182.4,4182.3,0.002]
[1758720388160,16.73814768,4182.4,4182.3,0.002]
[1758720388460,15.05291693,4182.4,4182.3,0.002]
[1758720389058,14.82351693,4182.4,4182.3,0.002]
[1758720389359,3.62926769,4182.4,4182.3,0.6717]
[1758720389559,2.9992,4182.4,4182.3,0.6717]
[1758720389760,2.9992,4182.4,4182.3,4.6547]
[1758720389961,2.9992,4182.4,4182.3,0.002]
[1758720390164,8.03037089,4182.4,4182.3,0.002]
[1758720390463,6.54143682,4182.4,4182.3,0.002]
[1758720391474,5.90103938,4182.4,4182.3,0.002]
[1758720391838,3.51006769,4182.4,4182.3,0.2314]
[1758720392037,4.15113781,4182.4,4182.3,0.6717]
[1758720392244,5.90103938,4182.4,4182.3,0.6717]
[1758720392568,3.51006769,4182.4,4182.3,0.6717]
[1758720393758,5.90103938,4182.4,4182.3,0.002]
[1758720393939,6.75323183,4182.4,4182.3,0.002]
[1758720394274,5.90103938,4182.4,4182.3,14.502]
[1758720394773,4.36679679,4182.4,4182.3,18.484]
[1758720397775,4.36679679,4182.4,4182.3,3.984]
[1758720398078,4.36679679,4182.4,4182.3,18.484]
[1758720398280,4.37006568,4182.4,4182.3,18.484]
[1758720398871,4.37006568,4182.4,4182.3,19.1537]
[1758720401170,3.51333658,4182.4,4182.3,4.6537]
[1758720401679,3.51333658,4182.4,4182.3,19.1537]
[1758720402047,3.51333658,4182.4,4182.3,21.54472885]
[1758720402247,3.51333658,4182.4,4182.3,19.1537]
[1758720402472,3.51333658,4182.4,4182.3,21.54472885]
[1758720402672,4.15603525,4182.4,4182.3,21.54472885]
[1758720404088,3.51433658,4182.4,4182.3,21.54472885]
[1758720405282,3.0002,4182.4,4182.3,19.1537]
[1758720405469,3.0002,4182.4,4182.3,14.502]
[1758720405470,3.51433658,4182.4,4182.3,14.502]
[1758720405775,3.73973658,4182.4,4182.3,18.482]
[1758720406282,3.73973658,4182.4,4182.3,3.982]
[1758720406506,3.73893658,4182.4,4182.3,3.982]
[1758720407186,3.51353658,4182.4,4182.3,3.982]
[1758720408573,3.73893658,4182.4,4182.3,3.982]
[1758720408759,4.38163525,4182.4,4182.3,3.982]
[1758720409203,5.90450827,4182.4,4182.3,0.002]
[1758720409385,8.17221082,4182.4,4182.3,3.982]
[1758720409857,9.02893992,4182.4,4182.3,3.982]
[1758720412518,8.17221082,4182.4,4182.3,3.982]
[1758720412816,8.22293582,4182.4,4182.3,0.002]
[1758720413119,17.67324255,4182.4,4182.3,0.002]
[1758720413286,16.38751916,4182.4,4182.3,0.002]
[1758720413907,16.38751916,4182.4,4182.1,0.02]
[1758720413908,2.39108603,4182.2,4182.1,1e-08]
[1758720414111,2.39125756,4181.9,4181.8,1e-08]
[1758720414420,14.45261575,4181.9,4181.8,1e-08]
[1758720414801,15.13331575,4181.9,4181.8,1e-08]
[1758720415536,14.75067748,4181.9,4181.8,1e-08]
[1758720418289,16.03311953,4181.9,4181.8,1e-08]
[1758720418488,18.02223181,4181.9,4181.8,1e-08]
[1758720418688,22.00223181,4181.9,4181.8,1e-08]
[1758720419128,7.89450642,4181.9,4181.8,1e-08]
[1758720419289,5.90539414,4181.9,4181.8,0.23320001]
[1758720420029,5.90539414,4181.9,4181.8,1e-08]
[1758720420810,6.13919414,4181.9,4181.8,1e-08]
[1758720421888,6.57729414,4181.9,4181.8,1e-08]
[1758720422824,5.90539414,4181.9,4181.8,1e-08]
[1758720423033,8.29668029,4181.9,4181.8,1e-08]
[1758720423204,9.15109936,4181.9,4181.8,1e-08]
[1758720423988,9.15109936,4181.9,4181.8,0.22810001]
[1758720424194,9.15109936,4181.9,4181.8,0.65790001]
[1758720424823,9.15109936,4181.9,4181.8,0.22810001]
[1758720425028,5.90539414,4181.9,4181.8,0.22810001]
[1758720425228,5.90539414,4181.9,4181.8,0.65790001]
[1758720425758,6.02459414,4181.9,4181.8,0.65790001]
[1758720426300,6.25839414,4181.9,4181.8,1e-08]
[1758720426529,6.02459414,4181.9,4181.8,1e-08]
[1758720427726,8.58247109,4181.9,4181.8,1e-08]
[1758720427924,9.02057109,4181.9,4181.8,1e-08]
[1758720430815,18.0395735,4181.9,4181.8,1e-08]
[1758720431022,9.02057109,4181.9,4181.8,1e-08]
[1758720432153,9.40320936,4181.9,4181.8,1e-08]
[1758720433630,10.68485141,4181.9,4181.8,1e-08]
[1758720433842,10.30221314,4181.9,4181.8,1e-08]
[1758720436361,9.01977109,4181.9,4181.8,1e-08]
[1758720437528,2.3914863,4181.5,4181.4,0.002]
[1758720437740,11.07020622,4181.5,4181.4,0.002]
[1758720437937,15.5705441,4181.5,4181.4,0.002]
[1758720438273,15.69125197,4181.5,4181.4,0.002]
[1758720438835,15.44295197,4181.5,4181.4,0.002]
[1758720439839,15.3222441,4181.5,4181.4,0.002]
[1758720440395,16.60439429,4181.5,4181.4,0.002]
[1758720441704,16.72470537,4181.5,4181.4,0.002]
[1758720441855,16.97300537,4181.5,4181.4,0.002]
[1758720442056,15.69085518,4181.5,4181.4,0.002]
[1758720442384,16.13885518,4181.5,4181.4,0.002]
[1758720442694,15.69085518,4181.5,4181.4,0.002]
[1758720442855,5.3915435,4181.4,4181.3,1e-08]
[1758720443190,10.81170987,4181.4,4181.3,1e-08]
[1758720443492,11.50800987,4181.4,4181.3,1e-08]
[1758720443796,13.21957787,4181.4,4181.3,1e-08]
[1758720446492,11.50800987,4181.4,4181.3,1e-08]
[1758720446665,20.96245141,4181.4,4181.3,1e-08]
[1758720446850,22.39845141,4181.4,4181.3,1e-08]
[1758720447253,24.10817824,4181.4,4181.3,1e-08]
[1758720449761,20.12717824,4181.4,4181.3,1e-08]
[1758720449962,6.83070987,4181.4,4181.3,1e-08]
[1758720450219,10.81170987,4181.4,4181.3,0.23490001]
[1758720450614,10.81170987,4181.4,4181.3,1e-08]
[1758720450615,6.83070987,4181.4,4181.3,1e-08]
[1758720450757,10.81170987,4181.4,4181.3,0.23490001]
[1758720451883,10.81170987,4181.4,4181.3,1e-08]
[1758720452587,11.06000987,4181.4,4181.3,1e-08]
[1758720455205,10.81170987,4181.4,4181.3,1e-08]
[1758720456400,11.50800987,4181.4,4181.3,1e-08]
[1758720457322,0.1192,4181.3,4181.1,0.022]
[1758720457522,18.0145751,4181.2,4181.1,0.022]
[1758720458524,4.79660333,4181.2,4181.1,0.7143]
[1758720458710,5.90579447,4181.2,4181.1,0.7143]
[1758720460026,5.90579447,4181.2,4181.1,0.022]
[1758720460341,3.51413658,4181.2,4181.1,0.7143]
[1758720460490,0.51413658,4181.2,4181.1,3.10601509]
[1758720460694,0.51333658,4181.2,4181.1,3.10558615]
[1758720461012,0.51333658,4181.3,4181.1,3.10558615]
[1758720461212,0.64167677,4181.4,4181.2,4.4384]
[1758720461399,0.64167677,4181.5,4181.2,4.6733]
[1758720461607,0.76087677,4181.6,4181.3,0.6711]
[1758720461791,0.76087677,4181.6,4181.4,4.6521]
[1758720461990,0.76087677,4181.6,4181.5,0.6711]
[1758720462925,0.64167677,4181.6,4181.5,1.13631]
[1758720463128,0.64167677,4181.7,4181.5,1.13631]
[1758720463430,0.76087677,4181.8,4181.6,4.6521]
[1758720463731,0.76087677,4181.8,4181.7,14.5]
[1758720464119,0.1192,4181.8,4181.7,15.1711]
[1758720464296,0.76026637,4181.8,4181.7,15.1711]
[1758720465026,0.1192,4181.8,4181.7,17.37197921]
[1758720465228,0.001,4181.9,4181.7,19.76334506]
[1758720465393,0.001,4181.9,4181.8,4.6521]
[1758720465594,0.001,4181.9,4181.8,7.04341474]
[1758720465797,0.001,4181.9,4181.8,4.6521]
[1758720465996,0.001,4181.9,4181.8,5.38391892]
[1758720466199,0.001,4181.9,4181.8,19.88391892]
[1758720466396,0.001,4181.9,4181.8,22.27523366]
[1758720466618,0.001,4181.9,4181.8,19.88391892]
[1758720467025,0.001,4181.9,4181.8,22.27523366]
[1758720475551,0.001,4181.9,4181.8,23.06723366]
[1758720480766,0.001,4182.4,4182.3,3.18302885]
[1758720480955,0.001,4182.4,4182.3,19.30899384]
[1758720481151,0.001,4182.4,4182.3,19.97308356]
[1758720481463,0.001,4182.4,4182.3,34.47308356]
[1758720487786,0.0002,4182.4,4182.3,34.47308356]
[1758720490524,0.001,4182.8,4182.7,3.1828002]
[1758720490726,0.001,4182.9,4182.8,3.18274304]
[1758720491078,0.001,4182.9,4182.8,18.84314559]
[1758720500451,0.001,4182.9,4182.8,18.15514559]
[1758720500662,0.001,4182.9,4182.8,39.80158713]
[1758720500858,0.001,4182.9,4182.8,40.47868713]
[1758720501063,0.001,4182.9,4182.8,42.86997328]
[1758720501451,0.001,4182.9,4182.8,47.17997328]
[1758720501639,0.001,4182.9,4182.8,46.72857328]
[1758720502764,0.001,4182.9,4182.8,33.07043174]
[1758720502951,0.6798,4182.9,4182.8,31.47302919]
[1758720503545,0.6798,4182.9,4182.8,32.26502919]
[1758720506152,0.2472,4182.9,4182.8,32.26502919]
[1758720506754,0.001,4182.9,4182.8,32.26502919]
[1758720507259,0.2472,4182.9,4182.8,26.04202919]
[1758720508628,0.6798,4182.9,4182.8,34.1973216]
[1758720509252,0.6798,4182.9,4182.8,28.2293216]
[1758720509456,0.6798,4182.9,4182.8,34.1973216]
[1758720509842,0.6798,4182.9,4182.8,34.1993216]
[1758720514851,0.2472,4182.9,4182.8,34.1993216]
[1758720515172,0.2464,4182.9,4182.8,34.1993216]
[1758720516475,0.0002,4182.9,4182.8,34.1993216]
[1758720517277,0.0002,4182.9,4182.8,34.9956216]
[1758720518878,0.0002,4182.9,4182.8,43.15091401]
[1758720521377,0.0002,4182.9,4182.8,43.64098318]
[1758720522775,0.1791,4183.7,4183.0,2.39062873]
[1758720522955,0.1791,4183.7,4183.6,8.94729241]
[1758720523178,1e-08,4183.9,4183.7,3.18222874]
[1758720523382,0.001,4184.3,4184.2,2.38994311]
[1758720523607,0.001,4184.3,4184.2,24.05062332]
[1758720523805,0.001,4184.3,4184.2,16.56273148]
[1758720523968,0.001,4184.3,4184.2,31.06273148]
[1758720525302,0.001,4184.3,4184.2,30.62043148]
[1758720525975,0.001,4184.3,4184.2,31.06273148]
[1758720528003,0.001,4184.3,4184.2,30.37143148]
[1758720528574,0.001,4184.3,4184.2,30.62043148]
[1758720529379,0.001,4184.3,4184.2,30.37143148]
[1758720532791,0.001,4184.3,4184.2,30.49063148]
[1758720534026,0.001,4184.3,4184.2,30.73963148]
[1758720534631,0.001,4184.3,4184.2,30.49063148]
[1758720539414,0.001,4184.3,4184.2,17.80114311]
[1758720539726,0.6727,4184.3,4184.2,22.97514311]
[1758720539894,0.6727,4184.3,4184.2,23.76714311]
[1758720542210,0.6719,4184.3,4184.2,23.76714311]
[1758720542905,0.6719,4184.3,4184.2,21.77714311]
[1758720543221,0.6719,4184.3,4184.2,22.97514311]
[1758720544220,0.6719,4184.3,4184.2,20.5852]
[1758720544610,0.6719,4184.3,4184.2,22.97514311]
[1758720545201,0.6719,4184.3,4184.2,17.00914311]
[1758720545422,0.6719,4184.3,4184.2,22.97514311]
[1758720545932,0.722625,4184.3,4184.2,22.97514311]
[1758720547135,8.87791741,4184.3,4184.2,14.5]
[1758720547321,12.9084299,4184.3,4184.2,18.476]
[1758720547717,10.5185439,4184.3,4184.2,18.476]
[1758720548237,12.9084299,4184.3,4184.2,18.476]
[1758720548625,16.54957873,4184.3,4184.2,18.476]
[1758720548822,15.9084299,4184.3,4184.2,18.476]
[1758720549221,17.48185684,4184.3,4184.2,18.476]
[1758720549602,16.6269661,4184.3,4184.2,18.476]